[Event "44th Chess Olympiad Women 2022"]
[Site "Chennai"]
[Date "2022.07.30"]
[Round "2.28"]
[White "Vargas, Gabriela"]
[Black "Enkhtuul, Altan-Ulzii"]
[Result "0-1"]
[ECO "D70"]
[WhiteElo "2140"]
[BlackElo "2267"]
[Annotator "TA"]
[PlyCount "68"]
[EventDate "2022.07.29"]
[EventType "team-tourn"]
[EventCountry "IND"]
[SourceTitle "playchess.com"]
[Source "ChessBase"]
[SourceQuality "1"]
[WhiteTeam "Paraguay"]
[BlackTeam "Mongolia"]
[WhiteTeamCountry "PAR"]
[BlackTeamCountry "MGL"]
[TimeControl "40/5400+30:1800+30"]

{[%evp 15,68,55,73,49,70,67,94,20,24,25,28,0,0,-58,-59,-102,-72,-112,-102,-111,-105,-212,-75,-133,-133,-197,-188,-183,-148,-154,-159,-159,-154,-155,-137,-241,-230,-331,-330,-318,-278,-389,-240,-820,-813,-879,-864,-847,-836,-29937,-12851,-29936,-6528,-6583,-6491]} 1. d4 {[%emt 0:00:04]} d5 {[%emt 0:00:07]} 2. Nf3 {[%emt 0:01:10]} Nf6 {[%emt 0:00:06]} 3. c4 {[%emt 0:00:09]} c6 {[%emt 0:00:50]} 4. cxd5 {[%emt 0:01:25]} Nxd5 {[%emt 0:01:50]} 5. e4 {[%emt 0:01:35]} Nb6 {[%emt 0:00:04]} 6. Nc3 {[%emt 0:01:29]} Bg4 {[%emt 0:00:25]} 7. Be2 {[%emt 0:04:31]} g6 {[%emt 0:00:41]} 8. Be3 {[%emt 0:05:03]} Bg7 {[%emt 0:00:04]} 9. Qd2 {[%emt 0:01:06] [#] D70: Grünfeld: Unusual White 3rd moves (met by ...d5).} Bxf3 $146 {[%emt 0:02:45]} ({Predecessor:} 9... N8d7 10. Bh6 O-O 11. Bxg7 Kxg7 12. Qf4 Bxf3 13. gxf3 e5 14. dxe5 Qc7 15. O-O-O Qxe5 16. Qe3 Rad8 {½-½ (31) Ferreira,A-Dias,S Rio de Janeiro 1997}) 10. gxf3 {[%emt 0:00:35]} N8d7 {[%emt 0:07:05]} 11. Bh6 {[%emt 0:12:52]} (11. O-O-O $16) 11... Bxh6 $11 {[%emt 0:00:46]} 12. Qxh6 {[%emt 0:00:04]} e6 {[%emt 0:16:49]} 13. e5 {[%emt 0:06:21]} Qe7 {[%emt 0:00:14]} 14. Rd1 {[%emt 0:11:59]} (14. O-O-O $11) 14... O-O-O $15 {[%emt 0:00:33]} 15. Ne4 {[%emt 0:00:57]} Kb8 {[%emt 0:00:48]} 16. Qd2 {[%emt 0:09:57]} Rhf8 {[%emt 0:03:46]} (16... Nxe5 $2 17. Qf4 $18) 17. O-O {[%emt 0:13:41]} f6 {[%emt 0:03:03]} 18. Kh1 {[%emt 0:07:08]} (18. f4 $17 {is a better defense.}) 18... Nd5 {[%emt 0:04:20]} (18... fxe5 $19 {and Black stays clearly on top.} 19. dxe5 Nd5) 19. exf6 {[%emt 0:01:56]} (19. f4 $142) 19... N7xf6 $17 {[%emt 0:00:06]} 20. Ng3 {[%emt 0:06:46]} (20. Bc4 $17) 20... Nd7 {[%emt 0:09:37]} 21. Rfe1 {[%emt 0:04:17]} Qh4 {[%emt 0:01:52]} 22. Bf1 {[%emt 0:02:22]} Rxf3 {[%emt 0:01:20]} 23. Bg2 {[%emt 0:01:11]} Rf6 {[%emt 0:07:14] 0x0.00168200299cdp-1022s more active pieces.} 24. Re4 {[%emt 0:01:35]} Nf4 {[%emt 0:06:49] aiming for ...g5.} 25. Qb4 {[%emt 0:01:03]} (25. Ne2 $17 g5 26. Nxf4 gxf4 27. Qe2) 25... Nb6 $19 {[%emt 0:00:15][%cal Bd7b6,Bb6d5,Bd5f4,Bf4g2][%mdl 32]} 26. Rde1 {[%emt 0:02:54]} (26. Qa5 $142) 26... Nbd5 {[%emt 0:00:27] Pair of Knights!} 27. Qa5 {[%emt 0:00:15][%cal Ra5d8] [#]} Rff8 {[%emt 0:01:30]} 28. Qd2 {[%emt 0:01:25]} Qf6 $40 {[%emt 0:00:39][%mdl 128] Black is out for blood.} 29. Re5 $2 {[%emt 0:00:33]} (29. Bf1) 29... Nxg2 {[%emt 0:00:18]} 30. Kxg2 {[%emt 0:00:08]} Qf3+ {[%emt 0:00:07]} 31. Kf1 {[%emt 0:00:31]} Nf4 {[%emt 0:00:21][%csl Gf4][%cal Rf3g2] [#]} 32. R1e3 {[%emt 0:00:57]} Qg2+ {[%emt 0:00:07]} 33. Ke1 {[%emt 0:00:09]} Qg1+ {[%emt 0:00:06]} 34. Nf1 {[%emt 0:00:10]} Ng2+ {[%emt 0:00:05] Weighted Error Value: White=0.82/Black=0.21 (precise)} 0-1

[Event "44th Chess Olympiad Women 2022"]
[Site "Chennai"]
[Date "2022.07.30"]
[Round "2.28"]
[White "Munkhzul, Davaakhuu"]
[Black "Montiel Caceres, Helen"]
[Result "1-0"]
[ECO "B85"]
[WhiteElo "2095"]
[BlackElo "1763"]
[Annotator "TA"]
[PlyCount "139"]
[EventDate "2022.07.29"]
[EventType "team-tourn"]
[EventCountry "IND"]
[SourceTitle "playchess.com"]
[Source "ChessBase"]
[SourceQuality "1"]
[WhiteTeam "Mongolia"]
[BlackTeam "Paraguay"]
[WhiteTeamCountry "MGL"]
[BlackTeamCountry "PAR"]
[TimeControl "40/5400+30:1800+30"]

{[%evp 27,139,0,8,7,41,11,95,77,93,25,37,27,51,29,36,18,47,62,46,-71,0,0,5,7,10,7,14,-33,-20,-23,-34,-63,-47,-52,-52,-45,-46,-50,-3,-400,-24,-64,-51,-89,-14,-18,0,-99,0,0,0,-78,-71,-153,-141,-138,-108,-100,0,0,0,0,0,0,0,0,0,0,0,0,0,0,0,0,0,0,0,0,0,0,0,0,0,0,0,0,0,0,0,0,0,-5073,0,0,161,0,0,0,0,0,0,0,154,0,0,0,0,0,0,0,0,0,80,80]} 1. e4 {[%emt 0:00:02]} c5 {[%emt 0:00:10]} 2. Nf3 {[%emt 0:00:06]} e6 {[%emt 0:00:08]} 3. d4 {[%emt 0:00:05]} cxd4 {[%emt 0:00:04]} 4. Nxd4 {[%emt 0:00:07]} Nc6 {[%emt 0:00:08]} 5. Nc3 {[%emt 0:00:10]} Qc7 {[%emt 0:00:07]} 6. Be3 {[%emt 0:01:25]} a6 {[%emt 0:00:07]} 7. Be2 {[%emt 0:00:07]} Nf6 {[%emt 0:00:06]} 8. O-O {[%emt 0:00:12]} Be7 {[%emt 0:00:39]} 9. f4 {[%emt 0:00:10]} d6 {[%emt 0:00:13]} 10. Qe1 {[%emt 0:00:27]} Nxd4 {[%emt 0:00:09]} 11. Bxd4 {[%emt 0:00:08]} b5 {[%emt 0:00:38]} 12. a3 {[%emt 0:03:42]} O-O {[%emt 0:01:59]} 13. Qg3 {[%emt 0:00:23]} Bb7 {[%emt 0:00:29]} 14. Kh1 {[%emt 0:00:27]} Rad8 {[%emt 0:05:01]} 15. Rae1 {[%emt 0:00:48] B85: Sicilian Scheveningen: 6 Be2 a6, lines with early Be3.} Rfe8 {[%emt 0:09:30]} 16. Bd3 {[%emt 0:00:48] [#]} d5 $146 {[%emt 0:12:50]} (16... Bc6 $11) ({Predecessor:} 16... Rd7 17. Re3 g6 18. Re2 Qd8 19. f5 Nh5 20. Qh3 Bf6 21. Bxf6 Nxf6 22. Qh4 exf5 23. exf5 Rxe2 24. Nxe2 {1-0 (36) Navara,D (2734)-David,A (2553) Patras 2019}) 17. Be5 $16 {[%emt 0:16:06] White is more active.} Qc5 {[%emt 0:01:37]} 18. exd5 {[%emt 0:05:19]} ({White should play} 18. f5 $1 $16 {[%cal Rf5e6] Strongly threatening fxe6.} dxe4 19. fxe6 exd3 20. Rxf6 Bxf6 21. Bxf6) 18... exd5 $11 {[%emt 0:00:46]} 19. Ne2 {[%emt 0:07:11]} Bc8 {[%emt 0:07:31]} 20. Nd4 {[%emt 0:10:33]} Qb6 {[%emt 0:12:44]} 21. c3 {[%emt 0:23:47]} Bf8 {[%emt 0:00:57]} 22. f5 {[%emt 0:10:30][%cal Od4e6]} Bd6 {[%emt 0:04:04]} 23. Nf3 {[%emt 0:03:33] [#]} (23. Bxd6 $14 Rxd6 24. Rxe8+ Nxe8 25. Qe5) 23... Bxe5 {[%emt 0:03:26]} (23... Rxe5 $1 $17 24. Rxe5 (24. Nxe5 $2 Qc7 $17) 24... Nd7) 24. Rxe5 {[%emt 0:02:10]} Rxe5 {[%emt 0:17:52]} 25. Qxe5 {[%emt 0:00:18]} Re8 {[%emt 0:00:05]} 26. Qd4 {[%emt 0:00:40]} Qc7 {[%emt 0:00:33]} 27. a4 {[%emt 0:05:06]} (27. Re1 $11 {should be considered.}) 27... Bd7 $15 {[%emt 0:02:15]} 28. axb5 {[%emt 0:01:15]} Bxb5 {[%emt 0:00:35]} 29. Ra1 {[%emt 0:02:10]} Bxd3 {[%emt 0:09:26]} 30. Qxd3 {[%emt 0:00:03]} Qb6 {[%emt 0:00:17]} 31. b4 {[%emt 0:03:34]} Ne4 {[%emt 0:01:09]} 32. Qd4 {[%emt 0:00:37]} (32. Rxa6 Nf2+ 33. Kg1 Nh3+ 34. Kh1 Qg1+ $3 {[%mdl 512]} 35. Nxg1 Nf2#) 32... Qc6 {[%emt 0:00:16]} (32... Qb5 $15) 33. Rc1 $2 {[%emt 0:02:48][%mdl 8192] [#]} (33. Ra5 $1 $11 {and White stays safe.}) 33... Qb5 $2 {[%emt 0:04:39]} ({Black should try} 33... Ng3+ $1 $19 {[%mdl 512]} 34. hxg3 Qh6+ 35. Kg1 Qxc1+ 36. Kf2 Qc2+ 37. Kg1 Qxf5) 34. Kg1 {[%emt 0:01:17]} Rc8 $36 {[%emt 0:00:51][%cal Be8c8,Bc8c4,Bc4c5][%mdl 2080] Black is pushing.} (34... a5 {looks sharper.} 35. c4 dxc4 36. Qxc4 Qb6+) 35. Ne5 {[%emt 0:00:54]} f6 {[%emt 0:01:39]} (35... a5 $1 $17 {[%cal Ra5b4] aiming for ...axb4.} 36. Re1 a4) 36. Nd3 $11 {[%emt 0:00:53]} Rc4 {[%emt 0:00:19]} 37. Qe3 {[%emt 0:00:33]} (37. Qa7 $11 {remains equal.}) 37... Nxc3 {[%emt 0:01:10]} (37... Rxc3 $2 38. Rxc3 Qd7 39. Ra3 $18) (37... Qc6 $1 $17 38. Nc5 Nxc5 39. bxc5 Qxc5 40. Qxc5 Rxc5) 38. Qe6+ {[%emt 0:00:16]} Kf8 {[%emt 0:00:11]} 39. Re1 {[%emt 0:00:33]} (39. Qd6+ $11 Ke8 40. Qe6+ Kf8 41. Qd6+ (41. Re1 Ne4 $17) 41... Kg8 42. Qe6+ Kf8) 39... Ne4 $17 {[%emt 0:02:25]} 40. Nc5 {[%emt 0:00:36]} (40. Kh1 $142) 40... Rxc5 {[%emt 0:00:31]} 41. Rxe4 {[%emt 0:01:53] Qe7+ would kill now.} (41. bxc5 {is a self mate.} Qxc5+ 42. Kh1 Nf2+ 43. Kg1 Nh3+ 44. Kh1 Qg1+ $3 {[%mdl 512]} 45. Rxg1 Nf2#) 41... dxe4 {[%emt 0:00:10]} 42. Qd6+ {[%emt 0:00:33]} Ke8 {[%emt 0:00:33]} (42... Kg8 $1 $17 {( -> ...Rc1+)} 43. bxc5 h5) 43. Qe6+ $11 {[%emt 0:10:48]} Kd8 {[%emt 0:01:18]} 44. Qd6+ {[%emt 0:00:12]} Kc8 {[%emt 0:00:14]} 45. bxc5 {[%emt 0:00:44][%mdl 4096] Endgame KQ-KQ} Qb1+ {[%emt 0:00:42]} 46. Kf2 {[%emt 0:00:02]} Qc2+ {[%emt 0:01:11]} 47. Ke1 {[%emt 0:03:17]} Qd3 {[%emt 0:05:43] And now ...Qxd6 would win.} 48. Qc6+ {[%emt 0:02:36]} Kd8 {[%emt 0:00:08]} 49. Qb6+ {[%emt 0:03:24]} Ke8 {[%emt 0:00:27]} 50. Qe6+ {[%emt 0:00:19]} Kd8 {[%emt 0:00:47]} 51. Qg8+ {[%emt 0:02:54]} Kc7 {[%emt 0:00:19]} 52. Qxg7+ {[%emt 0:00:09]} Kc6 {[%emt 0:00:10]} 53. Qxf6+ {[%emt 0:00:06]} Kxc5 {[%emt 0:00:04]} 54. Qe7+ {[%emt 0:00:14]} Kb5 {[%emt 0:00:28]} 55. Qe5+ {[%emt 0:02:24]} Kb4 {[%emt 0:00:09]} 56. Qb2+ {[%emt 0:02:33]} Kc5 {[%emt 0:00:10]} 57. f6 {[%emt 0:01:46] Hoping for f7.} Qe3+ {[%emt 0:00:32]} 58. Kf1 {[%emt 0:00:12]} Qd3+ {[%emt 0:00:53]} 59. Qe2 $2 {[%emt 0:03:20][%mdl 8192]} (59. Kg1 $11 Kd6 60. Qb6+ Ke5 61. f7 Qd1+ 62. Kf2 Qd2+ 63. Kf1 Qf4+ 64. Qf2 Qc1+ 65. Ke2 Qc2+ 66. Kf1 Qc1+ 67. Ke2 Qc2+ 68. Kf1 Qc1+) 59... Qb1+ $2 {[%emt 0:01:23]} (59... Kd6 $19 60. Qxd3+ exd3) 60. Kf2 {[%emt 0:00:09] Black must now prevent f7.} Qb7 {[%emt 0:01:49] [#]} (60... Qa1 $11 {and Black has nothing to worry.}) 61. Qa2 $2 {[%emt 0:00:52]} ({Don't play} 61. Qh5+ $6 Kd6 $14) (61. Qd2 $1 $18) 61... Kd6 {[%emt 0:01:08]} 62. Ke3 {[%emt 0:00:35]} Ke5 {[%emt 0:02:01]} 63. f7 {[%emt 0:01:41]} Qa7+ {[%emt 0:00:13]} 64. Ke2 {[%emt 0:00:05]} Qe7 $2 {[%emt 0:00:17]} ({Better is} 64... Qc5 $1 $11) 65. Qa5+ $2 {[%emt 0:01:49]} (65. Qxa6 $16 Qxf7 66. Qa1+ Kd6 67. Qd4+ Kc6 68. Qxe4+ Kb5 69. h3) 65... Kf6 {[%emt 0:00:16]} 66. Qxa6+ {[%emt 0:00:04]} Kxf7 {[%emt 0:00:05]} 67. Qh6 {[%emt 0:00:11]} Kg8 {[%emt 0:01:34]} 68. g3 {[%emt 0:00:09]} Qf7 {[%emt 0:00:40]} 69. Qg5+ {[%emt 0:00:51]} Kf8 {[%emt 0:00:06] [#]} (69... Kh8 $1 $11 {keeps the balance.}) 70. Qf4 $1 {[%emt 0:00:16] Weighted Error Value: White=0.53/Black=0.45} 1-0

[Event "44th Chess Olympiad Women 2022"]
[Site "Chennai"]
[Date "2022.07.30"]
[Round "2.28"]
[White "Perez, Dalila"]
[Black "Mungunzul, Bat-Erdene"]
[Result "0-1"]
[ECO "D11"]
[WhiteElo "1799"]
[BlackElo "2163"]
[Annotator "TA"]
[PlyCount "76"]
[EventDate "2022.07.29"]
[EventType "team-tourn"]
[EventCountry "IND"]
[SourceTitle "playchess.com"]
[Source "ChessBase"]
[SourceQuality "1"]
[WhiteTeam "Paraguay"]
[BlackTeam "Mongolia"]
[WhiteTeamCountry "PAR"]
[BlackTeamCountry "MGL"]
[TimeControl "40/5400+30:1800+30"]

{[%evp 9,76,16,43,31,27,20,90,98,94,85,89,81,89,83,78,90,91,46,77,-76,-68,-78,-73,-71,-75,-124,-108,-141,-137,-130,-123,-127,-127,-132,-115,-129,-125,-129,-104,-151,-124,-241,-241,-239,-240,-247,-231,-227,-227,-356,-349,-325,-318,-398,-395,-613,-490,-479,-443,-979,-965,-945,-869,-777,-551,-762,-637,-910,-618]} 1. d4 {[%emt 0:00:03]} d5 {[%emt 0:00:07]} 2. Nf3 {[%emt 0:00:05]} Nf6 {[%emt 0:00:17]} 3. c4 {[%emt 0:00:15]} c6 {[%emt 0:00:18]} 4. g3 {[%emt 0:00:11][%cal Bg2g3,Bg3g4][%mdl 32]} Bf5 {[%emt 0:02:53]} 5. Nc3 {[%emt 0:00:28]} a6 {[%emt 0:03:16]} 6. Nh4 {[%emt 0:21:43] D11: Slav Defence: 3 Nf3 sidelines and 3...Nf6 4 e3 Bg4.} Bg4 {[%emt 0:06:55]} 7. h3 {[%emt 0:04:15]} Bh5 {[%emt 0:10:09] [#]} (7... Bc8 $11) 8. g4 $146 {[%emt 0:07:23] White is better.} ({Predecessor:} 8. b3 e6 9. g4 Bg6 10. Nxg6 hxg6 11. Bg2 Bb4 12. Bd2 Qa5 13. Qc2 Ba3 {0-1 (13) Chan,Y (1859)-Tirto (2295) Penang 2017}) 8... Bg6 {[%emt 0:00:24]} 9. Qb3 {[%emt 0:08:37]} b5 {[%emt 0:23:23]} 10. cxd5 {[%emt 0:09:27]} (10. cxb5 $6 axb5 11. Nxg6 hxg6 $11) (10. Nxg6 $6 dxc4 11. Qc2 hxg6 $11) 10... Nxd5 {[%emt 0:00:26][%cal Bf6d5,Bd5b4,Bb4c2][%mdl 32]} 11. Nxg6 {[%emt 0:06:56]} hxg6 {[%emt 0:00:15]} 12. Bg2 {[%emt 0:00:05][%cal Rc3d5]} e6 {[%emt 0:00:34]} 13. e4 {[%emt 0:04:58]} Nb4 {[%emt 0:07:25]} 14. Qd1 {[%emt 0:14:08] [#] Prevents Nd3+.} (14. O-O $16 {and life is bright.}) 14... Qxd4 $17 {[%emt 0:03:32] Black keeps a firm grip on the game.} 15. O-O {[%emt 0:06:14]} Qxd1 {[%emt 0:03:08] Black is more active.} 16. Rxd1 {[%emt 0:00:01]} e5 {[%emt 0:00:41] Prevents Bf4.} 17. Be3 {[%emt 0:01:21]} (17. Rd2 $142 Nd7 18. a3) 17... Nc2 {[%emt 0:00:44]} 18. Rac1 {[%emt 0:00:49]} Nxe3 {[%emt 0:00:17]} 19. fxe3 {[%emt 0:00:02]} Nd7 {[%emt 0:03:56]} 20. Nb1 {[%emt 0:03:15][%cal Bc3b1,Bb1d2,Bd2f3][%mdl 32]} Rc8 {[%emt 0:00:20]} 21. Nd2 {[%emt 0:00:40]} Bc5 {[%emt 0:01:42]} 22. Kf2 {[%emt 0:00:49]} Ke7 {[%emt 0:06:00]} 23. Nf3 {[%emt 0:03:03][%cal Od1d7] And now Rxd7+! would win.} Bb6 {[%emt 0:01:03]} 24. Rc3 {[%emt 0:01:42]} (24. h4 $142) 24... Rhd8 {[%emt 0:00:47]} 25. b4 {[%emt 0:02:25] [#]} (25. g5 $17) 25... c5 $1 $19 {[%emt 0:02:03][%cal Bc6c5,Bc5c4][%mdl 32]} (25... Nf6 26. Rxd8 Nxe4+ 27. Kf1 Rxd8 28. Rc2 $17) 26. Rdc1 {[%emt 0:00:26]} c4 {[%emt 0:01:00]} 27. a4 {[%emt 0:01:14]} f6 {[%emt 0:00:34]} ({Not} 27... bxa4 28. Ke2) 28. Bf1 {[%emt 0:01:14]} Nb8 {[%emt 0:01:47][%cal Bd7b8,Bb8c6,Bc6b4][%mdl 32]} 29. Ke2 {[%emt 0:01:01]} (29. Rb1 {might work better.}) 29... Nc6 {[%emt 0:01:08]} ({Weaker is} 29... bxa4 30. Nd2 $15) 30. Rb1 {[%emt 0:00:22] [#]} Nxb4 $1 {[%emt 0:02:15][%mdl 512]} 31. axb5 {[%emt 0:01:00]} (31. Ne1 Bc5) 31... axb5 {[%emt 0:00:42][%cal Oc8a8]} 32. Ra3 {[%emt 0:00:47]} (32. Nh4 $142) 32... Bc5 {[%emt 0:04:12] Black is clearly winning.} 33. Ne1 {[%emt 0:00:47]} Ra8 {[%emt 0:00:36]} 34. Rc3 {[%emt 0:00:33]} (34. Raa1 $142) 34... Ra2+ {[%emt 0:01:49]} 35. Kf3 {[%emt 0:00:20]} Rdd2 {[%emt 0:00:12] Hoping for ...Rf2+.} 36. Kg3 {[%emt 0:00:33]} Rdb2 {[%emt 0:00:33]} 37. Rbc1 {[%emt 0:00:42]} Ra7 {[%emt 0:02:34]} 38. Kf3 {[%emt 0:00:45]} Na2 {[%emt 0:00:00] Weighted Error Value: White=0.58/Black=0.25 (precise)} 0-1

[Event "44th Chess Olympiad Women 2022"]
[Site "Chennai"]
[Date "2022.07.30"]
[Round "2.29"]
[White "Georgescu, Lena"]
[Black "Enomah Emmanuella Trust"]
[Result "1-0"]
[ECO "B81"]
[WhiteElo "2279"]
[BlackElo "1901"]
[Annotator "TA"]
[PlyCount "61"]
[EventDate "2022.07.29"]
[EventType "team-tourn"]
[EventCountry "IND"]
[SourceTitle "playchess.com"]
[Source "ChessBase"]
[SourceQuality "1"]
[WhiteTeam "Switzerland"]
[BlackTeam "Nigeria"]
[WhiteTeamCountry "SUI"]
[BlackTeamCountry "NGR"]
[TimeControl "40/5400+30:1800+30"]

{[%evp 15,61,78,102,81,117,95,154,98,109,76,102,103,202,202,180,116,227,156,145,95,189,218,343,311,379,375,861,852,869,852,1074,1069,1022,853,952,859,29991,29992,29992,29993,29993,29993,29993,29994,29994,29995,29995,783]} 1. e4 {[%emt 0:00:07]} c5 {[%emt 0:00:08]} 2. Nf3 {[%emt 0:00:05]} e6 {[%emt 0:00:41]} 3. d4 {[%emt 0:00:04]} cxd4 {[%emt 0:00:23]} 4. Nxd4 {[%emt 0:00:05]} Nf6 {[%emt 0:00:12]} 5. Nc3 {[%emt 0:00:10]} d6 {[%emt 0:01:28]} 6. g4 {[%emt 0:00:14][%cal Bg2g4,Bg4g5][%mdl 32]} Be7 {[%emt 0:03:30]} 7. g5 {[%emt 0:00:48]} Nfd7 {[%emt 0:02:20]} 8. h4 {[%emt 0:02:21][%cal Bh2h4,Bh4h5][%mdl 32]} a6 {[%emt 0:02:09]} 9. Be3 {[%emt 0:01:29] B81: Sicilian Scheveningen: Keres Attack.} Qc7 {[%emt 0:01:15]} 10. h5 {[%emt 0:05:39] White is much more active.} Nc6 {[%emt 0:06:48]} (10... b5 $142) 11. Qd2 {[%emt 0:11:59]} (11. f4 $142) 11... b5 $16 {[%emt 0:05:00]} 12. O-O-O {[%emt 0:04:50]} Bb7 {[%emt 0:03:03]} 13. a3 {[%emt 0:07:33]} Nde5 {[%emt 0:05:36]} (13... Nc5 $16) 14. f4 $18 {[%emt 0:04:21]} Nd7 {[%emt 0:11:02] [#]} 15. Be2 $146 {[%emt 0:05:12]} (15. f5 $18 Nxd4 16. Qxd4 (16. Bxd4 exf5 17. Bg2 fxe4 $16)) ({Predecessor:} 15. Bh3 Nc5 16. b3 f5 17. Nxe6 Nxe6 18. Nd5 Qb8 19. Bxf5 Ncd8 20. h6 gxh6 21. Rxh6 Bxd5 22. Qxd5 Ng7 23. Rxh7 Rxh7 24. Bxh7 Nf7 25. Bg6 {1-0 (26) Chkhaidze,N (2203)-Kakkanas,E (2009) Hastings 2008}) 15... O-O-O {[%emt 0:06:11]} (15... Nc5 $16) 16. Kb1 {[%emt 0:00:53][%cal Oe2b5] Black must now prevent Bxb5!} Nc5 {[%emt 0:02:55]} 17. Nb3 {[%emt 0:05:04]} (17. Rhf1 $142) 17... b4 {[%emt 0:08:08]} (17... h6 $16) 18. axb4 {[%emt 0:00:35]} Nxb3 {[%emt 0:02:50]} (18... Nxb4 $142 19. Qd4 Nxb3 20. Qxb4 Nc5) 19. cxb3 {[%emt 0:00:07]} Nxb4 {[%emt 0:02:09]} 20. Rc1 {[%emt 0:01:01]} Nc6 $2 {[%emt 0:07:25] [#]} (20... Kd7 21. Nd5 Qa5 22. Nxb4 Bxe4+ 23. Bd3 Bxd3+ 24. Nxd3 (24. Qxd3 Qxb4 25. Bd4 Qb5 $14) 24... Qxd2 25. Bxd2 h6) 21. Nd5 $1 {[%emt 0:05:56][%mdl 512]} exd5 {[%emt 0:03:42]} 22. exd5 {[%emt 0:00:09]} Kb8 {[%emt 0:03:27]} 23. dxc6 {[%emt 0:09:37]} Bxc6 {[%emt 0:02:27]} 24. Bf3 {[%emt 0:11:17]} d5 {[%emt 0:04:02]} 25. Qd4 {[%emt 0:00:50][%cal Oc1c6] Intending Rxc6! and mate.} Bf8 {[%emt 0:03:44] [#]} 26. Rxc6 $1 {[%emt 0:00:32][%mdl 512] White mates.} Qxc6 {[%emt 0:00:19]} 27. Qa7+ {[%emt 0:00:06]} Kc8 {[%emt 0:00:57]} 28. Rc1 {[%emt 0:00:27]} Qxc1+ {[%emt 0:00:10]} 29. Kxc1 {[%emt 0:00:25]} Rd6 {[%emt 0:03:36]} 30. Bg4+ {[%emt 0:00:52]} Kd8 {[%emt 0:00:53]} 31. Qb8+ {[%emt 0:00:25] Weighted Error Value: White=0.19 (very precise) /Black=0.86} (31. Bb6+ $142 Ke8 32. Qb8+ Ke7 {[#]} 33. Bd8+ $1 {[%mdl 512]} Ke8 34. Bf6+ Rd8 35. Qxd8#) 1-0

[Event "44th Chess Olympiad Women 2022"]
[Site "Chennai"]
[Date "2022.07.30"]
[Round "2.29"]
[White "Stoeri, Laura"]
[Black "Suleiman Azumi Ayisha"]
[Result "1-0"]
[ECO "B92"]
[WhiteElo "2084"]
[BlackElo "1833"]
[Annotator "TA"]
[PlyCount "71"]
[EventDate "2022.07.29"]
[EventType "team-tourn"]
[EventCountry "IND"]
[SourceTitle "playchess.com"]
[Source "ChessBase"]
[SourceQuality "1"]
[WhiteTeam "Switzerland"]
[BlackTeam "Nigeria"]
[WhiteTeamCountry "SUI"]
[BlackTeamCountry "NGR"]
[TimeControl "40/5400+30:1800+30"]

{[%evp 13,71,26,41,6,5,12,12,11,14,13,21,10,17,0,0,0,20,25,30,22,32,20,21,24,85,60,70,70,99,101,103,120,88,99,112,110,241,234,366,363,356,366,361,353,768,756,1353,1339,1419,1416,29975,29976,8939,1867,6917,6670,29995,29996,29998,29999]} 1. e4 {[%emt 0:00:03]} c5 {[%emt 0:00:46]} 2. Nf3 {[%emt 0:00:04]} d6 {[%emt 0:01:14]} 3. d4 {[%emt 0:00:05]} cxd4 {[%emt 0:00:41]} 4. Nxd4 {[%emt 0:00:05]} Nf6 {[%emt 0:00:07]} 5. Nc3 {[%emt 0:00:06]} a6 {[%emt 0:01:14]} 6. Be2 {[%emt 0:00:14]} e5 {[%emt 0:04:19]} 7. Nb3 {[%emt 0:00:05]} b5 {[%emt 0:10:31]} 8. Be3 {[%emt 0:08:50] B92: Sicilian Najdorf: 6 Be2.} Bb7 {[%emt 0:00:00]} 9. Nd5 {[%emt 0:18:22]} Nxd5 {[%emt 0:02:17]} 10. exd5 {[%emt 0:00:06] The position is equal.} Nd7 {[%emt 0:00:50][%cal Bb8d7,Bd7f6,Bf6e4][%mdl 32]} 11. O-O {[%emt 0:03:29]} Be7 {[%emt 0:03:40] [#]} 12. Qd2 $146 {[%emt 0:11:12] Threatening Na5.} ({Predecessor:} 12. a4 b4 13. c4 bxc3 14. bxc3 Rc8 15. c4 f5 16. Bd2 Nc5 17. Nxc5 Rxc5 18. Rb1 {1-0 (33) Funes Ostos,A (2042)-Vargas Rodriguez,G (1723) Canovelles 2022}) 12... Nf6 {[%emt 0:21:32]} 13. c4 $36 {[%emt 0:01:06][%mdl 2048] White has good play.} bxc4 {[%emt 0:00:24]} 14. Bxc4 {[%emt 0:00:54]} O-O {[%emt 0:10:09]} 15. Na5 {[%emt 0:01:53]} Qd7 {[%emt 0:00:40]} 16. h3 {[%emt 0:05:16]} Ne4 {[%emt 0:06:46]} 17. Qb4 {[%emt 0:12:56]} Rfb8 {[%emt 0:03:27][%cal Ob7d5]} 18. Qa3 {[%emt 0:00:16]} Rc8 {[%emt 0:16:52]} (18... Bd8 $11 {remains equal.}) 19. Rfd1 {[%emt 0:01:39]} Nf6 {[%emt 0:02:48]} 20. Rac1 {[%emt 0:05:04]} h6 {[%emt 0:00:29]} 21. Qb3 {[%emt 0:07:00]} ({Reject} 21. Nxb7 Qxb7 22. Qa4 Rc7 $14) 21... Rcb8 {[%emt 0:02:25][%cal Ob7d5]} 22. Qc2 {[%emt 0:00:35]} Rc8 {[%emt 0:02:42][%cal Ob7d5]} 23. Nc6 {[%emt 0:02:35]} Bf8 {[%emt 0:00:02]} 24. Bb3 {[%emt 0:01:31][%cal Bc4b3,Bb3a4,Ba4c6,Bc6d7,Bd7f5][%mdl 32] White is much more active.} Kh8 {[%emt 0:05:29] [#] A mistake that costs the game.} (24... a5 $16) 25. Ba4 $1 $18 {[%emt 0:01:34]} g6 {[%emt 0:01:13]} (25... Bxc6 {might work better.} 26. Bxc6 (26. dxc6 Qc7 $16) 26... Qd8) 26. Qb3 {[%emt 0:03:00]} Bxc6 {[%emt 0:02:20]} 27. Bxc6 {[%emt 0:01:00]} Qd8 {[%emt 0:00:28]} 28. Bb6 {[%emt 0:01:33][%cal Be3b6,Bb6d8,Bd8f6][%mdl 32]} Rab8 $2 {[%emt 0:00:31]} (28... Qe7 29. Bxa8 Rxa8) 29. Bxd8 {[%emt 0:00:18] This bishop pair is nice.} Rxb3 {[%emt 0:00:14]} 30. Bxf6+ {[%emt 0:00:05]} Kh7 {[%emt 0:00:14]} 31. axb3 {[%emt 0:00:05]} g5 {[%emt 0:00:40]} 32. Bd7 {[%emt 0:00:32]} Rb8 {[%emt 0:00:53]} 33. Bf5+ {[%emt 0:00:07]} Kg8 {[%emt 0:00:02]} 34. Rc8 {[%emt 0:00:34]} Rb7 {[%emt 0:00:58]} 35. Rdc1 {[%emt 0:00:12]} Rxb3 {[%emt 0:00:32] [#]} 36. Rxf8+ $1 {[%emt 0:00:13] Weighted Error Value: White=0.04 (flawless) /Black=0.69} 1-0